bitfinex/quotes_BTCUSD_20220111
["timestamp","ask_amount","ask_price","bid_price","bid_amount"]
[1641937689530,0.00720214,42718.0,42717.0,2.14716208]
[1641937689767,0.00720214,42718.0,42717.0,1.24716208]
[1641937690170,0.00720214,42718.0,42717.0,1.66363103]
[1641937690775,0.00720214,42718.0,42717.0,1.71363103]
[1641937691171,0.00720214,42718.0,42717.0,2.22074059]
[1641937691970,0.00720214,42718.0,42717.0,2.17074059]
[1641937692372,0.00720214,42718.0,42717.0,2.05674059]
[1641937692572,0.00720214,42718.0,42717.0,2.15674059]
[1641937692973,0.00720214,42718.0,42717.0,1.30697075]
[1641937693178,0.00720214,42718.0,42717.0,0.87213372]
[1641937694026,0.00720214,42718.0,42717.0,0.392325]
[1641937694424,0.00720214,42718.0,42717.0,0.375325]
[1641937695023,0.00720214,42718.0,42717.0,0.605325]
[1641937695227,0.00720214,42718.0,42717.0,0.617325]
[1641937695423,0.00720214,42718.0,42717.0,1.04049642]
[1641937696424,0.00720214,42718.0,42717.0,1.02849642]
[1641937697268,0.00720214,42718.0,42717.0,1.04049642]
[1641937698269,0.00720214,42718.0,42717.0,1.02849642]
[1641937699173,0.00720214,42718.0,42717.0,1.04049642]
[1641937700374,0.00720214,42718.0,42717.0,1.02849642]
[1641937701221,0.00720214,42718.0,42717.0,1.04249642]
[1641937702417,0.00720214,42718.0,42717.0,1.35993726]
[1641937703222,0.00720214,42718.0,42717.0,1.37893726]
[1641937704220,0.00720214,42718.0,42717.0,1.81042028]
[1641937704421,0.00720214,42718.0,42717.0,1.79142028]
[1641937705168,0.00720214,42718.0,42717.0,1.81142028]
[1641937706270,0.00720214,42718.0,42717.0,1.79142028]
[1641937706871,0.00720214,42718.0,42717.0,1.89993028]
[1641937707072,0.00720214,42718.0,42717.0,1.91893028]
[1641937707472,0.00720214,42718.0,42717.0,1.96893028]
[1641937708271,0.00720214,42718.0,42717.0,1.94993028]
[1641937709127,0.00720214,42718.0,42717.0,1.97093028]
[1641937710525,0.00720214,42718.0,42717.0,2.07093028]
[1641937710926,0.00720214,42718.0,42717.0,2.17083028]
[1641937711226,0.00720214,42718.0,42717.0,2.17883028]
[1641937712268,0.00720214,42718.0,42717.0,2.24983028]
[1641937713070,0.00720214,42718.0,42717.0,2.27683028]
[1641937714371,0.00720214,42718.0,42717.0,2.14983028]
[1641937715072,0.00720214,42718.0,42717.0,2.17683028]
[1641937716318,0.00720214,42718.0,42717.0,2.04993028]
[1641937717118,0.00720214,42718.0,42717.0,2.07893028]
[1641937717517,0.00720214,42718.0,42717.0,2.17893028]
[1641937717719,0.00069052,42720.0,42718.0,1.15]
[1641937717918,0.00069052,42720.0,42719.0,1.85274965]
[1641937718119,0.00069047,42720.0,42719.0,2.05289965]
[1641937718319,0.00069047,42720.0,42719.0,0.90289965]
[1641937718519,0.00069047,42720.0,42719.0,1.00279965]
[1641937718719,0.00069047,42720.0,42719.0,0.81156532]
[1641937718919,0.00069047,42720.0,42719.0,0.37654806]
[1641937719120,0.00069047,42720.0,42719.0,0.399325]
[1641937719322,0.00069045,42722.0,42719.0,0.399325]
[1641937719519,0.00789001,42722.0,42719.0,0.399325]
[1641937719777,0.00789001,42722.0,42720.0,0.00015]
[1641937719979,0.00789001,42722.0,42721.0,0.375175]
[1641937720482,0.00719956,42722.0,42721.0,0.375175]
[1641937721278,0.00719956,42722.0,42721.0,0.420175]
[1641937722580,0.00719956,42722.0,42721.0,0.375175]
[1641937723181,0.00719956,42722.0,42721.0,0.444175]
[1641937724424,0.00719956,42722.0,42721.0,0.375175]
[1641937725222,0.00719956,42722.0,42721.0,0.447175]
[1641937726422,0.00719956,42722.0,42721.0,0.375175]
[1641937727271,0.00719956,42722.0,42721.0,0.469175]
[1641937727673,0.00719956,42722.0,42721.0,0.094]
[1641937728072,0.05379956,42722.0,42721.0,0.094]
[1641937728271,0.34614556,42722.0,42721.0,0.094]
[1641937728470,0.34614556,42722.0,42720.0,0.00015]
[1641937728671,0.3,42721.0,42720.0,0.00015]
[1641937728871,0.592346,42721.0,42718.0,0.00015]
[1641937729071,0.0585312,42721.0,42718.0,0.00015]
[1641937729271,0.0795312,42721.0,42720.0,0.003]
[1641937729471,0.40060774,42721.0,42720.0,0.003]
[1641937729674,0.79295374,42721.0,42720.0,0.00315]
[1641937730273,0.63442254,42721.0,42720.0,0.00315]
[1641937730475,0.61342254,42721.0,42720.0,0.00015]
[1641937730875,0.61342254,42721.0,42718.0,0.00015]
[1641937731123,0.32107654,42721.0,42718.0,0.00015]
[1641937731325,0.32807654,42721.0,42720.0,0.012]
[1641937731723,0.32807654,42721.0,42720.0,0.01215]
[1641937731925,0.62042254,42721.0,42720.0,0.01215]
[1641937732525,0.61342254,42721.0,42720.0,0.00015]
[1641937732926,0.61342254,42721.0,42718.0,0.00015]
[1641937733129,0.32107654,42721.0,42718.0,0.00015]
[1641937733325,0.32907654,42721.0,42720.0,0.016]
[1641937733725,0.32907654,42721.0,42720.0,0.01615]
[1641937734526,0.32107654,42721.0,42720.0,0.00015]
[1641937734975,0.32107654,42721.0,42718.0,0.00015]
[1641937735171,0.32507654,42721.0,42720.0,0.021]
[1641937735373,0.004,42721.0,42720.0,0.021]
[1641937735573,0.004,42721.0,42720.0,0.02115]
[1641937736474,0.00719956,42722.0,42720.0,0.00015]
[1641937736674,0.292346,42721.0,42720.0,0.00015]
[1641937736873,0.292346,42721.0,42718.0,0.00015]
[1641937736874,0.57464551,42721.0,42718.0,0.00015]
[1641937737277,0.57864551,42721.0,42720.0,0.021]
[1641937737674,0.57864551,42721.0,42720.0,0.02115]
[1641937738531,0.57464551,42721.0,42720.0,0.00015]
[1641937738923,0.94543806,42721.0,42718.0,0.00015]
[1641937739324,0.94943806,42721.0,42720.0,0.019]
[1641937739525,0.57864551,42721.0,42720.0,0.019]
[1641937739725,0.57864551,42721.0,42720.0,0.01915]
[1641937740525,0.57464551,42721.0,42720.0,0.00015]
[1641937740925,0.292346,42721.0,42718.0,0.00015]
[1641937741125,0.00719956,42722.0,42718.0,0.00015]
[1641937741326,0.004,42721.0,42720.0,0.021]
[1641937741725,0.004,42721.0,42720.0,0.02115]
[1641937741926,0.296346,42721.0,42720.0,0.02115]
[1641937742872,0.004,42721.0,42720.0,0.02115]
[1641937743073,0.004,42721.0,42720.0,0.00015]
[1641937743275,0.007,42721.0,42720.0,0.01315]
[1641937743474,0.007,42721.0,42720.0,0.013]
[1641937743674,0.007,42721.0,42720.0,0.01427132]
[1641937744275,0.007,42721.0,42720.0,0.38944632]
[1641937744879,0.007,42721.0,42720.0,0.43944632]
[1641937745282,0.00719956,42722.0,42720.0,0.43944632]
[1641937745283,0.00719956,42722.0,42720.0,0.44944632]
[1641937745678,0.00719956,42722.0,42720.0,0.44959632]
[1641937746527,0.00719956,42722.0,42720.0,0.42659632]
[1641937746926,0.00069046,42723.0,42721.0,0.058508]
[1641937747126,0.00069046,42723.0,42722.0,0.375175]
[1641937748127,0.00069044,42725.0,42722.0,0.78037794]
[1641937748326,0.00069044,42725.0,42723.0,0.058509]
[1641937749227,0.00069044,42725.0,42723.0,0.078509]
[1641937749427,0.00069043,42726.0,42723.0,0.137017]
[1641937749628,0.00069043,42726.0,42723.0,0.187017]
[1641937749872,0.00069043,42726.0,42724.0,0.38241841]
[1641937750474,0.00069042,42727.0,42724.0,0.38241841]
[1641937751274,0.00069042,42727.0,42724.0,0.40041841]
[1641937751774,0.00069042,42728.0,42724.0,0.40041841]
[1641937751976,0.00069042,42728.0,42724.0,0.45892641]
[1641937752175,0.00069042,42728.0,42725.0,0.09946]
[1641937752375,0.00069042,42728.0,42725.0,0.090953]
[1641937752980,0.00069041,42729.0,42725.0,0.090953]
[1641937753179,0.00069041,42729.0,42727.0,0.058499]
[1641937754324,0.00069041,42729.0,42727.0,0.108499]
[1641937754925,0.00069041,42729.0,42727.0,0.158499]
[1641937755127,0.00069041,42729.0,42727.0,0.21699534]
[1641937755326,0.14944329,42730.0,42727.0,0.23999534]
[1641937755529,0.14944329,42730.0,42728.0,0.040946]
[1641937755727,0.14944329,42730.0,42729.0,0.71335463]
[1641937755926,0.0006904,42730.0,42729.0,0.75995463]
[1641937756224,0.0006904,42730.0,42729.0,0.90995463]
[1641937756425,0.0006904,42730.0,42729.0,0.95995463]
[1641937756624,0.00069039,42732.0,42729.0,1.26238054]
[1641937756826,0.00069039,42732.0,42731.0,1.058493]
[1641937757028,0.00069039,42732.0,42731.0,0.483668]
[1641937757275,0.00069039,42732.0,42731.0,0.79967975]
[1641937757475,0.00069039,42732.0,42731.0,0.80355113]
[1641937757675,0.00069039,42732.0,42731.0,0.5349377]
[1641937757875,0.00069037,42734.0,42731.0,0.5349377]
[1641937758276,0.00069037,42734.0,42732.0,0.375175]
[1641937758675,0.00069037,42734.0,42731.0,0.158493]
[1641937758876,0.00069037,42734.0,42731.0,0.058495]
[1641937759077,0.292346,42733.0,42729.0,0.0466]
[1641937759276,0.32107654,42732.0,42731.0,0.023]
[1641937759476,0.61342254,42732.0,42731.0,0.023]
[1641937760079,0.32107654,42732.0,42731.0,0.023]
[1641937760277,0.00069037,42734.0,42731.0,0.023]
[1641937761328,0.3217669,42735.0,42731.0,0.024]
[1641937761530,0.00069036,42735.0,42731.0,0.024]
[1641937762026,0.26963521,42735.0,42731.0,0.024]
[1641937762227,0.00069036,42735.0,42731.0,0.024]
[1641937762626,0.00069036,42735.0,42727.0,0.58607031]
[1641937762627,0.2705788,42735.0,42727.0,0.58607031]
[1641937763029,0.00069036,42735.0,42727.0,0.58607031]
[1641937763231,0.27332432,42735.0,42727.0,0.58607031]
[1641937763426,0.27332432,42735.0,42727.0,0.59907031]
[1641937763627,0.27506731,42735.0,42727.0,0.59907031]
[1641937763828,0.00069038,42733.0,42727.0,0.59907031]
[1641937764629,0.00069038,42733.0,42727.0,0.58607031]
[1641937764871,0.00069038,42733.0,42727.0,0.23]
[1641937765071,0.00069038,42732.0,42727.0,0.23]
[1641937765272,0.00069038,42732.0,42727.0,0.243]
[1641937766074,0.00138077,42732.0,42727.0,0.243]
[1641937766275,0.00069039,42732.0,42727.0,0.243]
[1641937766475,0.00069039,42732.0,42727.0,0.23]
[1641937766877,0.00069039,42732.0,42729.0,0.058504]
[1641937767977,0.00069039,42732.0,42729.0,0.117005]
[1641937768178,0.00069039,42732.0,42730.0,0.43439979]
[1641937768383,0.00069039,42732.0,42731.0,0.31388342]
[1641937768625,0.00069038,42733.0,42731.0,0.68905842]
[1641937768825,0.00069038,42733.0,42732.0,0.375175]
[1641937769226,0.00069038,42733.0,42732.0,0.75704665]
[1641937769425,0.00069038,42733.0,42732.0,0.77504665]
[1641937769827,0.00069036,42735.0,42733.0,0.058494]
[1641937770826,0.00069036,42735.0,42734.0,1.075175]
[1641937771030,0.42069035,42736.0,42734.0,0.73799957]
[1641937771228,0.42069035,42736.0,42734.0,0.84649057]
[1641937771427,0.42069035,42736.0,42734.0,0.86749057]
[1641937772276,0.42,42736.0,42734.0,0.554666]
[1641937773080,0.42,42736.0,42734.0,0.433666]
[1641937773279,0.42,42736.0,42735.0,0.38989354]
[1641937773480,0.42,42736.0,42734.0,0.021]
[1641937774481,0.42,42736.0,42729.0,0.45252134]
[1641937775279,0.42,42736.0,42729.0,0.053]
[1641937775481,0.47851036,42736.0,42729.0,0.053]
[1641937775882,0.00069036,42735.0,42729.0,0.053]
[1641937776534,0.00069036,42735.0,42728.0,0.4430439]
[1641937776932,0.00069037,42734.0,42728.0,0.4430439]
[1641937777334,0.00069037,42734.0,42728.0,0.4740439]
[1641937778134,0.00069038,42733.0,42728.0,0.4740439]
[1641937778534,0.00069038,42733.0,42728.0,0.4430439]
[1641937779335,0.00069038,42733.0,42728.0,0.4680439]
[1641937780576,0.00069038,42733.0,42728.0,0.4430439]
[1641937781376,0.00069038,42733.0,42728.0,0.4680439]
[1641937781679,0.00069038,42733.0,42729.0,0.058504]
[1641937782780,0.10125697,42730.0,42711.0,0.00067886]
[1641937782980,0.00123731,42718.0,42711.0,0.00067886]
[1641937783178,0.0466,42717.0,42711.0,0.00067886]
[1641937783379,0.36767654,42717.0,42711.0,0.05367886]
[1641937783629,0.00122843,42712.0,42711.0,0.05367886]
[1641937784131,0.00122843,42712.0,42711.0,0.05367899]
[1641937784732,0.00122843,42712.0,42711.0,0.00067899]
[1641937785331,0.0466,42714.0,42711.0,0.049]
[1641937786132,0.26506985,42713.0,42711.0,0.049]
[1641937786331,0.26440676,42713.0,42711.0,0.049]
[1641937786533,0.26408174,42713.0,42711.0,0.049]
[1641937786834,0.26408174,42713.0,42710.0,0.00082897]
[1641937787032,0.0466,42714.0,42710.0,0.00082897]
[1641937787480,0.0466,42714.0,42710.0,0.05082897]
[1641937787680,0.26508902,42713.0,42710.0,0.05082897]
[1641937787881,0.26508902,42713.0,42710.0,0.05082898]
[1641937788083,0.0466,42714.0,42711.0,0.375175]
[1641937789483,0.0466,42714.0,42711.0,0.423175]
[1641937790081,0.0466,42714.0,42711.0,0.048]
[1641937790683,0.0466,42714.0,42710.0,0.00082896]
[1641937791326,0.0466,42714.0,42710.0,0.00082897]
[1641937791529,0.0466,42714.0,42710.0,0.04982897]
[1641937792129,0.03100722,42714.0,42710.0,0.04982897]
[1641937792728,0.03100722,42714.0,42710.0,0.00082897]
[1641937793526,0.03400722,42714.0,42710.0,0.05682897]
[1641937793726,0.03400722,42714.0,42710.0,0.05682898]
[1641937793927,0.09254495,42714.0,42710.0,0.05682898]
[1641937794779,0.03100722,42714.0,42710.0,0.00082898]
[1641937795477,0.03400722,42714.0,42710.0,0.05682898]
[1641937796077,0.26448066,42713.0,42710.0,0.05682898]
[1641937796277,0.29471021,42713.0,42710.0,0.05682898]
[1641937796679,0.29471021,42713.0,42710.0,0.00082898]
[1641937797382,0.29471021,42713.0,42710.0,0.05915]
[1641937798180,0.00125908,42712.0,42710.0,0.05915]
[1641937798380,0.04785908,42712.0,42710.0,0.05915]
[1641937798630,0.32126095,42711.0,42710.0,0.05915]
[1641937798831,0.36786095,42711.0,42706.0,0.39582899]
[1641937799033,0.46786095,42711.0,42706.0,0.39582899]
[1641937799531,0.47586095,42711.0,42706.0,0.39582899]
[1641937800132,0.47586095,42711.0,42700.0,0.00015]
[1641937800133,1.15,42706.0,42700.0,0.00015]
[1641937800336,0.00129075,42701.0,42700.0,0.00015]
[1641937800531,0.2264203,42700.0,42698.0,0.00015]
[1641937800732,0.922046,42699.0,42698.0,0.00015]
[1641937800931,0.92325962,42699.0,42698.0,0.00049417]
[1641937801529,0.93225962,42699.0,42698.0,0.00049417]
[1641937802279,0.93225962,42699.0,42698.0,0.00015]
[1641937802483,1.24419207,42699.0,42698.0,0.00015]
[1641937802681,1.23519207,42699.0,42697.0,0.00015]
[1641937802880,0.30002018,42698.0,42697.0,0.00015]
[1641937803086,0.63896618,42698.0,42697.0,0.00015]
[1641937803482,0.64796618,42698.0,42697.0,0.00015]
[1641937803883,0.009,42698.0,42697.0,0.40015]
[1641937804084,0.009,42698.0,42697.0,0.375325]
[1641937804688,0.40849062,42708.0,42697.0,0.375325]
[1641937804885,0.40849062,42708.0,42697.0,0.058695]
[1641937805090,0.27096277,42707.0,42698.0,0.00015]
[1641937805885,0.27056277,42707.0,42701.0,0.28587954]
[1641937806332,0.27056277,42707.0,42701.0,0.62816398]
[1641937806732,0.00126503,42708.0,42701.0,0.62816398]
[1641937806931,0.00126503,42708.0,42702.0,0.00071129]
[1641937807531,0.00626503,42708.0,42702.0,0.00071129]
[1641937807932,0.00626503,42708.0,42704.0,0.33568159]
[1641937808733,0.00126503,42708.0,42704.0,0.33568159]
[1641937809436,0.00926503,42708.0,42704.0,0.33635579]
[1641937810080,0.00065819,42706.0,42705.0,0.48385321]
[1641937810282,0.00065819,42706.0,42705.0,0.53045321]
[1641937810479,0.00065819,42706.0,42705.0,0.90562821]
[1641937811476,0.1955651,42714.0,42712.0,0.26239906]
[1641937811676,0.00067409,42714.0,42712.0,0.26239906]
[1641937812078,0.00067409,42714.0,42713.0,0.375175]
[1641937812578,0.00067409,42714.0,42713.0,0.68665289]
[1641937812779,0.00067409,42714.0,42713.0,0.73325289]
[1641937812982,0.00720057,42715.0,42713.0,0.73325289]
[1641937813177,0.00720057,42715.0,42714.0,0.31646527]
[1641937813377,0.00720057,42715.0,42714.0,1.14655744]
[1641937813628,0.00720057,42715.0,42714.0,1.12985744]
[1641937815427,0.00069289,42717.0,42714.0,1.12985744]
[1641937815428,0.00069289,42717.0,42715.0,0.117035]
[1641937815629,0.00069289,42717.0,42716.0,1.52174223]
[1641937815828,0.00069289,42717.0,42716.0,1.67174223]
[1641937816030,0.00069289,42717.0,42716.0,1.74329223]
[1641937816228,0.00069289,42717.0,42716.0,1.79329223]
[1641937816729,0.000691,42719.0,42717.0,0.05]
[1641937816929,0.000691,42719.0,42718.0,2.38127451]
[1641937817127,0.000691,42719.0,42718.0,2.58127451]
[1641937817681,0.000691,42719.0,42718.0,3.23433598]
[1641937817881,0.00015,42720.0,42718.0,3.71743598]
[1641937818079,0.00015,42720.0,42719.0,2.45552802]
[1641937818283,0.00015,42720.0,42719.0,2.65212802]
[1641937818681,0.00015,42720.0,42719.0,2.97638976]
[1641937818879,0.00015,42720.0,42719.0,3.02638976]
[1641937819582,0.00015,42720.0,42719.0,3.16138976]
[1641937819989,0.00015,42720.0,42719.0,3.06138976]
[1641937820785,0.00015,42720.0,42719.0,3.02638976]
[1641937821040,0.00015,42720.0,42719.0,2.97638976]
[1641937821628,0.00015,42720.0,42719.0,3.01038976]
[1641937822529,0.00015,42720.0,42719.0,3.11038976]
[1641937822728,0.00015,42720.0,42719.0,3.07638976]
[1641937823629,0.00069088,42722.0,42720.0,0.040949]
[1641937823830,0.00069101,42722.0,42721.0,2.62130488]
[1641937824029,0.00069101,42722.0,42721.0,2.97258162]
[1641937824630,0.00069101,42722.0,42721.0,3.00476783]
[1641937825079,0.000691,42724.0,42722.0,0.10497624]
[1641937825279,0.000691,42724.0,42723.0,2.55516618]
[1641937825480,0.000691,42724.0,42723.0,2.60516618]
[1641937825781,0.000691,42724.0,42723.0,2.60644299]
[1641937825983,0.00015,42730.0,42723.0,2.95644299]
[1641937826183,0.00015,42730.0,42729.0,1.7343048]
[1641937826380,0.00015,42730.0,42729.0,2.42042469]
[1641937826581,0.00015,42730.0,42729.0,3.28897254]
[1641937826781,0.00015,42730.0,42729.0,3.57043884]
[1641937826982,0.00015,42730.0,42729.0,2.42043884]
[1641937827580,0.00015,42730.0,42729.0,2.44743884]
[1641937827780,0.00015,42730.0,42729.0,2.34764979]
[1641937828382,0.00015,42730.0,42729.0,2.50764979]
[1641937828827,0.00015,42730.0,42729.0,2.48064979]
[1641937829031,0.001,42745.0,42734.0,1.24941753]
[1641937829229,0.59894888,42755.0,42739.0,0.00127555]
[1641937829432,0.59894888,42755.0,42751.0,0.5831]
[1641937829629,0.59894888,42755.0,42753.0,0.00128283]
[1641937829828,0.54890885,42755.0,42754.0,0.70960113]
[1641937830029,0.54890885,42755.0,42754.0,1.58400755]
[1641937830231,0.001,42759.0,42754.0,2.07609655]
[1641937830428,0.001,42759.0,42755.0,0.375175]
[1641937830629,0.001,42759.0,42756.0,0.0466]
[1641937830827,0.001,42759.0,42757.0,0.375175]
[1641937831028,0.00169301,42759.0,42757.0,0.421775]
[1641937831528,0.00169301,42759.0,42757.0,0.433775]
[1641937832376,0.001,42759.0,42757.0,0.433775]
[1641937832776,0.001,42759.0,42757.0,0.421775]
[1641937833577,0.001,42759.0,42757.0,0.76349548]
[1641937833777,0.001,42759.0,42757.0,0.83823548]
[1641937834880,0.001,42759.0,42757.0,0.82723548]
[1641937835678,0.001,42759.0,42757.0,0.84723548]
[1641937835877,0.001,42759.0,42757.0,0.77249548]
[1641937836835,0.001,42759.0,42757.0,0.75249548]
[1641937837433,0.001,42759.0,42757.0,0.91249548]
[1641937837734,0.001,42759.0,42757.0,0.94149548]
[1641937838533,0.001,42759.0,42757.0,0.610775]
[1641937839136,0.001,42759.0,42757.0,0.581775]
[1641937839535,0.001,42759.0,42757.0,0.89372716]
[1641937839776,0.001,42759.0,42757.0,0.607775]
[1641937840779,0.001,42759.0,42757.0,0.581775]
[1641937841579,0.001,42759.0,42757.0,0.92935415]
[1641937842781,0.001,42759.0,42757.0,0.581775]
[1641937843526,0.001,42759.0,42757.0,0.612775]
[1641937844826,0.001,42759.0,42757.0,0.581775]
[1641937845628,0.001,42759.0,42757.0,0.629775]
[1641937846836,0.001,42759.0,42757.0,0.581775]
[1641937847681,0.001,42759.0,42757.0,0.612775]
[1641937848886,0.001,42759.0,42757.0,0.581775]
[1641937849685,0.001,42759.0,42757.0,0.608775]
[1641937851035,0.001,42759.0,42757.0,0.581775]
[1641937851632,0.001,42759.0,42757.0,0.568175]
[1641937852834,0.001,42759.0,42757.0,0.535175]
[1641937853633,0.001,42759.0,42757.0,0.551175]
[1641937854880,0.001,42759.0,42757.0,0.535175]
[1641937855579,0.001,42759.0,42757.0,0.551175]
[1641937856878,0.001,42759.0,42757.0,0.535175]
[1641937857680,0.001,42759.0,42757.0,0.551175]
[1641937858931,0.001,42759.0,42757.0,0.535175]
[1641937859732,0.001,42759.0,42757.0,0.553175]
[1641937861635,0.001,42759.0,42757.0,0.570175]
[1641937861834,0.001,42759.0,42757.0,0.565175]
[1641937862885,0.001,42759.0,42757.0,0.530175]
[1641937863786,0.001,42759.0,42757.0,0.549175]
[1641937864388,0.001,42759.0,42757.0,0.179]
[1641937864888,0.001,42759.0,42757.0,0.16]
[1641937865689,0.001,42759.0,42757.0,0.198]
[1641937867038,0.001,42759.0,42757.0,0.16]
[1641937867236,0.001,42759.0,42757.0,0.534772]
[1641937867639,0.001,42759.0,42757.0,0.536772]
[1641937869039,0.001,42759.0,42757.0,0.534772]
[1641937869784,0.001,42759.0,42757.0,0.538772]
[1641937870786,0.000201,42758.0,42757.0,0.538772]
[1641937871589,0.05472474,42765.0,42758.0,0.374772]
[1641937871792,0.05472474,42765.0,42757.0,0.162]
[1641937871989,0.05472474,42765.0,42759.0,0.28073645]
[1641937872592,0.05472474,42765.0,42762.0,0.43860373]
[1641937872795,0.297408,42764.0,42762.0,0.43860373]
[1641937875737,0.89268384,42764.0,42762.0,0.43860373]
[1641937876735,0.297408,42764.0,42762.0,0.43860373]
[1641937877384,0.27597852,42763.0,42762.0,0.43860373]
[1641937879782,0.00719358,42763.0,42762.0,0.43860373]
[1641937883836,0.00719358,42763.0,42762.0,0.44060373]
[1641937885095,0.00719358,42763.0,42762.0,0.43860373]
[1641937887696,0.00719358,42763.0,42762.0,0.44460373]
[1641937888540,0.00719358,42763.0,42762.0,0.49460373]
[1641937889233,0.00719358,42763.0,42762.0,0.54460373]
[1641937889434,0.00719358,42763.0,42762.0,0.86937573]
[1641937889633,0.00719358,42763.0,42762.0,1.18582802]
[1641937889833,0.00719358,42763.0,42762.0,1.20282802]
[1641937890434,0.00719358,42763.0,42762.0,1.25282802]
[1641937890435,0.00179358,42763.0,42762.0,1.25282802]
[1641937891034,0.00179358,42763.0,42762.0,1.23582802]
[1641937891935,0.00179358,42763.0,42762.0,1.25682802]
[1641937893188,2.275e-05,42765.0,42763.0,0.93975287]
[1641937893386,2.275e-05,42765.0,42763.0,0.68975287]
[1641937893685,0.00066944,42765.0,42764.0,0.058452]
[1641937894787,0.00719181,42766.0,42763.0,0.077452]
[1641937894987,0.00719181,42766.0,42762.0,0.48860373]
[1641937894988,0.00219181,42766.0,42762.0,0.48860373]
[1641937895790,0.00219181,42766.0,42762.0,0.51060373]
[1641937897036,0.00219181,42766.0,42762.0,0.48860373]
[1641937897837,0.00219181,42766.0,42762.0,0.52460373]
[1641937899040,0.00219181,42766.0,42762.0,0.48860373]
[1641937899888,0.00219181,42766.0,42762.0,0.51960373]
[1641937901188,0.00219181,42766.0,42762.0,0.48860373]
[1641937901789,0.00219181,42766.0,42762.0,0.47360373]
[1641937903534,0.00219181,42766.0,42762.0,0.43860373]
[1641937903736,0.00219181,42766.0,42762.0,0.49460373]
[1641937904937,0.00219181,42766.0,42762.0,0.43860373]
[1641937905737,0.00219181,42766.0,42762.0,0.49660373]
[1641937906437,1.79347723,42765.0,42762.0,0.49660373]
[1641937906642,1.78847723,42765.0,42758.0,0.25116802]
[1641937907036,0.79673882,42765.0,42758.0,0.25116802]
[1641937907288,0.79673882,42764.0,42757.0,0.218464]
[1641937907890,0.69716242,42759.0,42757.0,0.223464]
[1641937908091,0.69716242,42759.0,42758.0,0.374772]
[1641937908492,0.018,42764.0,42758.0,0.374772]
[1641937908691,0.018,42764.0,42757.0,0.50966213]
[1641937909091,0.79673882,42765.0,42757.0,0.50466213]
[1641937909295,0.69673882,42765.0,42757.0,0.50466213]
[1641937909893,0.72073882,42765.0,42757.0,0.50766213]
[1641937910293,0.024,42765.0,42757.0,0.50766213]
[1641937911134,0.00219181,42766.0,42757.0,0.50466213]
[1641937911734,0.02619181,42766.0,42757.0,0.50766213]
[1641937913136,0.00219181,42766.0,42757.0,0.50466213]
[1641937913333,0.00219181,42766.0,42757.0,0.44619813]
[1641937913734,0.02619181,42766.0,42757.0,0.44919813]
[1641937914786,0.02619181,42766.0,42757.0,0.50766113]
[1641937914987,0.00219181,42766.0,42757.0,0.50466113]
[1641937915789,0.02119181,42766.0,42757.0,0.50866113]
[1641937915989,0.02119181,42766.0,42757.0,0.82009548]
[1641937916189,0.02119181,42766.0,42757.0,0.50866113]
[1641937916790,0.02119181,42766.0,42757.0,0.55866113]
[1641937916993,0.00219181,42766.0,42757.0,0.55466113]
[1641937917591,0.00219181,42766.0,42757.0,0.86837386]
[1641937917791,0.02019181,42766.0,42757.0,0.87237386]
[1641937917991,0.02019181,42766.0,42757.0,0.87147441]
[1641937918192,0.02019181,42766.0,42757.0,0.86990936]
[1641937918392,0.02019181,42766.0,42757.0,0.87596381]
[1641937918638,0.02019181,42766.0,42757.0,0.55866113]
[1641937918839,0.02019181,42766.0,42757.0,0.87380208]
[1641937919041,0.00219181,42766.0,42757.0,0.86980208]
[1641937919943,0.00219181,42766.0,42757.0,0.55866113]
[1641937919944,0.02419181,42766.0,42757.0,0.55866113]
[1641937920139,0.02419181,42766.0,42757.0,0.87125921]
[1641937920343,0.02419181,42766.0,42757.0,0.50866113]
[1641937920540,0.02419181,42766.0,42757.0,0.55866113]
[1641937920944,0.02419181,42766.0,42763.0,0.49965352]
[1641937921144,0.00219181,42766.0,42763.0,0.49965352]
[1641937921544,0.00219181,42766.0,42764.0,0.26933553]
[1641937921742,0.03319181,42766.0,42764.0,0.26933553]
[1641937922987,0.00219181,42766.0,42764.0,0.26933553]
[1641937923886,0.02919181,42766.0,42764.0,0.26933553]
[1641937925092,0.00219181,42766.0,42764.0,0.26933553]
[1641937925289,0.00219181,42766.0,42763.0,0.49965352]
[1641937925790,0.03419181,42766.0,42757.0,0.4720575]
[1641937926046,0.03419181,42766.0,42757.0,0.16]
[1641937926239,0.00122554,42762.0,42757.0,0.16]
[1641937926737,1.047408,42758.0,42757.0,0.16]
[1641937926938,1.44840403,42758.0,42757.0,0.16]
[1641937927138,0.44522493,42758.0,42757.0,0.16]
[1641937927338,0.34522493,42758.0,42757.0,0.16]
[1641937927741,0.45,42757.0,42755.0,0.00069391]
[1641937927940,0.38701358,42756.0,42755.0,0.00069391]
[1641937928139,0.53701358,42756.0,42755.0,0.00069391]
[1641937928438,0.53701358,42756.0,42754.0,0.0006939]
[1641937928640,1.247408,42755.0,42754.0,0.0006939]
[1641937928840,0.63702447,42755.0,42754.0,0.0006939]
[1641937929040,0.73702447,42755.0,42754.0,0.0006939]
[1641937929642,0.68702447,42755.0,42752.0,0.02403691]
[1641937929887,0.11698127,42754.0,42752.0,0.02403691]
[1641937930086,0.297408,42753.0,42752.0,0.02403691]
[1641937930290,0.347408,42753.0,42752.0,0.02403691]
[1641937930690,0.447408,42753.0,42752.0,0.02403691]
[1641937930888,0.447408,42753.0,42752.0,0.023343]
[1641937931691,0.297408,42753.0,42752.0,0.023343]
[1641937931893,0.309408,42753.0,42752.0,0.023343]
[1641937932391,0.012,42753.0,42752.0,0.023343]
[1641937933192,0.0311147,42756.0,42752.0,0.023343]
[1641937933392,0.0298272,42756.0,42755.0,0.41268372]
[1641937933642,0.3272352,42756.0,42755.0,0.41268372]
[1641937933844,0.012,42756.0,42755.0,0.41268372]
[1641937934046,0.012,42756.0,42755.0,0.36268372]
[1641937934243,0.012,42756.0,42755.0,0.81826047]
[1641937934444,0.012,42756.0,42755.0,1.28526972]
[1641937934644,0.012,42756.0,42755.0,1.28404497]
[1641937934844,0.012,42756.0,42755.0,0.81703572]
[1641937935144,0.34880747,42765.0,42755.0,0.454352]
[1641937935348,0.297408,42764.0,42753.0,0.00069172]
[1641937935544,0.34880747,42765.0,42753.0,0.00138344]
[1641937935746,0.34880747,42765.0,42753.0,0.00069172]